bitfinex/quotes_ETHUSD_20260216
["timestamp","ask_amount","ask_price","bid_price","bid_amount"]
[1771203179232,0.48285247,1973.6,1972.5,1.25129876]
[1771203180249,0.48285247,1973.6,1972.6,0.45229876]
[1771203180666,0.48395247,1973.6,1972.6,0.45229876]
[1771203182261,0.48395247,1973.6,1972.4,0.896]
[1771203182262,0.48285247,1973.5,1972.4,0.998]
[1771203183065,0.48285247,1973.5,1972.4,1.45029876]
[1771203183268,0.48285247,1973.5,1972.4,0.45329876]
[1771203186873,0.48285247,1973.4,1972.4,0.001]
[1771203187875,0.58525247,1973.3,1972.4,0.001]
[1771203188470,0.48285247,1973.2,1972.4,0.001]
[1771203193681,0.48285247,1973.2,1972.5,0.001]
[1771203194089,1.26699864,1973.2,1972.5,0.001]
[1771203194270,0.48280905,1973.1,1972.5,0.001]
[1771203194795,0.48280905,1973.0,1972.2,0.001]
[1771203197206,0.48280905,1972.9,1972.2,0.001]
[1771203198418,0.48280905,1972.7,1972.2,0.001]
[1771203199701,0.48280905,1972.7,1971.9,0.001]
[1771203199702,0.48280905,1972.6,1971.9,0.001]
[1771203200074,0.713,1972.8,1972.0,0.50215259]
[1771203201998,0.48280905,1973.0,1972.0,0.50215259]
[1771203205891,7.72136861,1972.9,1972.0,0.50215259]
[1771203206091,7.72136861,1972.9,1972.0,0.00253886]
[1771203206092,0.48280905,1972.6,1972.0,0.00253886]
[1771203206806,7.72136861,1972.3,1972.0,0.00253886]
[1771203207484,7.72136861,1972.5,1972.0,0.00253886]
[1771203207680,7.72136861,1972.5,1971.9,0.001]
[1771203207681,8.20417766,1972.5,1971.9,0.001]
[1771203207901,0.48280905,1972.3,1971.1,0.50061373]
[1771203208195,0.48280905,1972.3,1971.3,0.49961373]
[1771203210398,0.48280905,1972.3,1971.2,0.49961373]
[1771203211595,10.45981259,1972.7,1971.3,0.49961373]
[1771203211786,0.58520905,1972.6,1971.3,0.49961373]
[1771203219811,0.58520905,1972.6,1971.5,0.49961373]
[1771203220120,0.48280905,1972.4,1971.5,0.49961373]
[1771203221532,0.0011,1972.5,1971.6,0.49961373]
[1771203224227,0.0011,1972.5,1971.7,0.48651939]
[1771203225090,0.0011,1972.5,1971.9,0.48651939]
[1771203225930,0.0011,1972.5,1972.0,0.46045166]
[1771203231096,0.0011,1972.5,1972.1,0.98]
[1771203233228,0.0011,1972.5,1972.1,1.44045166]
[1771203233416,0.0011,1972.5,1972.2,0.46045166]
[1771203233614,0.0011,1972.5,1972.1,0.98]
[1771203233926,0.0011,1972.5,1972.2,0.46045166]
[1771203240320,0.0011,1972.5,1972.3,0.98]
[1771203240500,0.0011,1972.5,1972.3,1.44045166]
[1771203240702,0.0011,1972.5,1972.4,0.46045166]
[1771203240899,0.0011,1972.8,1972.4,0.46045166]
[1771203241207,0.0011,1972.8,1972.3,0.98]
[1771203241414,0.0011,1972.8,1972.3,1.44045166]
[1771203242205,0.48462032,1972.7,1972.0,0.46045166]
[1771203242410,0.48462032,1972.7,1972.0,1.44045166]
[1771203243831,0.48462032,1972.7,1972.0,0.46045166]
[1771203244044,0.0011,1972.8,1972.3,0.46045166]
[1771203244245,0.0011,1972.8,1972.5,0.46045166]
[1771203244609,0.0011,1972.7,1972.5,0.46045166]
[1771203247741,0.0011,1972.7,1972.4,0.845]
[1771203248038,0.0011,1972.7,1971.9,0.46145166]
[1771203248241,0.0011,1972.7,1972.0,0.46045166]
[1771203248738,0.0011,1972.7,1972.1,0.46045166]
[1771203248944,0.0011,1972.7,1972.3,0.46045166]
[1771203251817,0.0011,1972.7,1972.2,0.984]
[1771203252423,0.48572032,1972.7,1972.1,0.984]
[1771203253427,0.48572032,1972.7,1971.9,0.46145166]
[1771203253628,0.48572032,1972.7,1972.0,0.983]
[1771203253834,0.48572032,1972.7,1971.9,0.46145166]
[1771203254035,0.48572032,1972.7,1972.0,0.983]
[1771203254846,0.48572032,1972.7,1971.9,0.984]
[1771203256727,0.48572032,1972.7,1971.9,0.001]
[1771203257146,0.48572032,1972.7,1972.0,0.001]
[1771203257468,0.47895493,1972.5,1972.0,0.001]
[1771203270345,0.47895493,1972.5,1972.1,0.001]
[1771203270551,0.48005493,1972.5,1972.1,0.001]
[1771203271943,0.47895493,1972.4,1972.1,0.001]
[1771203274048,0.47895493,1972.3,1972.1,0.001]
[1771203275862,0.47895493,1972.2,1971.9,0.001]
[1771203276082,0.47895493,1972.0,1971.9,0.001]
[1771203276868,0.47895493,1972.2,1971.6,0.47905456]
[1771203278276,0.47895493,1972.2,1971.6,0.001]
[1771203280042,0.47895493,1972.1,1971.6,0.001]
[1771203280471,0.47895493,1972.3,1971.6,0.47905456]
[1771203282072,0.37895493,1972.3,1971.6,0.47905456]
[1771203283980,0.37895493,1972.3,1971.7,0.001]
[1771203284177,7.72680659,1972.2,1971.7,0.001]
[1771203284351,7.72790659,1972.2,1971.7,0.001]
[1771203284546,8.17854686,1972.2,1971.7,0.001]
[1771203285575,0.48811395,1971.9,1971.7,0.001]
[1771203286781,7.72680659,1972.0,1971.4,0.001]
[1771203286782,8.21492054,1971.8,1971.4,0.001]
[1771203286946,7.72680659,1971.6,1971.3,0.001]
[1771203287147,8.21492054,1971.6,1971.3,0.001]
[1771203288245,8.99459424,1972.0,1971.0,0.00253886]
[1771203288246,0.48811395,1971.3,1971.0,0.00253886]
[1771203288446,0.48811395,1971.3,1970.6,0.48472066]
[1771203290173,0.714,1971.4,1970.9,0.48472066]
[1771203290344,0.48811395,1971.9,1971.0,0.48372066]
[1771203290549,7.72834545,1972.0,1971.2,0.48372066]
[1771203290550,0.718,1971.8,1971.2,0.48372066]
[1771203290942,7.72680659,1971.6,1970.9,0.48472066]
[1771203291152,0.718,1971.5,1970.9,0.48472066]
[1771203296171,0.718,1971.5,1971.0,0.001]
[1771203296960,0.718,1971.5,1971.0,0.48472066]
[1771203299777,0.59205281,1972.0,1971.0,0.48472066]
[1771203299975,0.628,1971.9,1971.0,0.48472066]
[1771203300756,0.00153886,1972.0,1971.0,0.48472066]
[1771203301885,0.00153886,1972.0,1971.1,0.48372066]
[1771203302086,0.48965281,1972.0,1971.1,0.48372066]
[1771203302382,0.48965281,1972.0,1971.0,0.48472066]
[1771203306202,0.719,1971.9,1971.0,0.48472066]
[1771203307984,0.7201,1971.9,1971.0,0.48472066]
[1771203311206,1.20821395,1971.9,1971.0,0.48472066]
[1771203311681,0.48811395,1971.8,1971.0,0.48472066]
[1771203313096,0.48811395,1971.8,1971.0,0.001]
[1771203314394,0.48811395,1971.8,1971.0,0.48372463]
[1771203315377,0.48811395,1971.8,1971.0,0.001]
[1771203319179,0.59856295,1971.7,1971.0,0.001]
[1771203319500,10.91704292,1971.8,1971.0,0.001]
[1771203319501,0.49616295,1971.8,1971.0,0.48372463]
[1771203319701,0.49616295,1971.8,1971.1,0.001]
[1771203321076,0.49616295,1971.7,1971.1,0.001]
[1771203321813,0.0011,1971.9,1971.1,0.48372463]
[1771203321972,0.72,1971.8,1971.2,0.48272463]
[1771203325504,0.0011,1971.9,1971.2,0.48272463]
[1771203331413,0.0011,1971.8,1971.2,0.48272463]
[1771203332996,0.0011,1971.8,1971.3,0.48272463]
[1771203333897,0.0011,1971.8,1971.4,0.48272463]
[1771203343307,0.0011,1971.7,1971.4,0.48272463]
[1771203354925,0.0011,1971.6,1971.4,0.48272463]
[1771203355239,0.0011,1971.6,1971.2,0.48244136]
[1771203355622,0.0011,1971.6,1971.3,0.951]
[1771203356238,0.0011,1971.6,1971.3,1.43344136]
[1771203356909,0.0011,1971.6,1971.3,0.48244136]
[1771203357110,0.0011,1971.6,1971.3,1.43444136]
[1771203360235,0.0011,1971.6,1971.1,0.48344136]
[1771203360638,0.47559434,1971.6,1971.1,0.956]
[1771203363233,0.47559434,1971.6,1971.1,0.001]
[1771203364238,0.47449434,1971.4,1971.1,0.001]
[1771203364917,0.47449434,1971.4,1971.0,0.001]
[1771203365118,0.47449434,1971.2,1971.0,0.001]
[1771203365842,0.47449434,1971.2,1970.8,0.001]
[1771203365843,7.72747099,1971.1,1970.8,0.001]
[1771203366013,0.47449434,1971.0,1970.8,0.001]
[1771203370756,0.7211,1971.6,1970.9,0.48244136]
[1771203370962,0.7211,1971.6,1970.9,0.48344136]
[1771203371263,0.7211,1971.6,1971.0,0.48344136]
[1771203371559,0.7211,1971.6,1971.0,0.48244136]
[1771203372844,0.47449434,1971.4,1971.1,0.001]
[1771203373045,0.47449434,1971.4,1970.9,0.001]
[1771203373554,0.47449434,1971.4,1971.0,0.001]
[1771203373760,8.18276665,1971.3,1970.8,0.002]
[1771203374460,0.45529566,1971.3,1970.8,0.002]
[1771203376943,1.17929566,1971.3,1970.8,0.002]
[1771203377583,8.90676665,1971.3,1970.8,0.002]
[1771203378861,8.90676665,1971.3,1970.9,0.001]
[1771203379062,0.0011,1971.2,1970.9,0.001]
[1771203379263,0.0011,1971.2,1970.9,0.002]
[1771203380758,0.45639566,1971.2,1970.9,0.002]
[1771203385470,0.0011,1971.2,1971.0,0.001]
[1771203386545,8.18276665,1971.1,1970.9,0.001]
[1771203386966,8.91776665,1971.1,1970.7,0.001]
[1771203391278,8.91776665,1971.1,1970.8,0.001]
[1771203391490,8.91886665,1971.1,1970.8,0.001]
[1771203399585,8.46357099,1971.1,1970.8,0.001]
[1771203399991,0.7361,1971.1,1970.8,0.001]
[1771203400477,1.19139566,1971.1,1970.8,0.001]
[1771203401187,1.19139566,1971.1,1969.9,0.48249596]
[1771203401188,0.45529566,1970.8,1969.9,0.48249596]
[1771203401491,7.83735018,1970.9,1969.9,0.48249596]
[1771203401492,7.73495018,1970.4,1969.9,0.48249596]
[1771203401687,8.48595018,1970.4,1969.9,0.48249596]
[1771203401987,8.64895018,1971.0,1970.0,0.48403482]
[1771203401988,7.73495018,1970.8,1970.0,0.48403482]
[1771203402190,0.751,1970.9,1970.2,0.48249596]
[1771203403871,0.751,1970.9,1970.4,0.47844822]
[1771203407001,1.20716669,1970.9,1970.3,0.001]
[1771203407200,1.20716669,1970.9,1970.3,0.45478568]
[1771203407572,0.751,1970.9,1970.3,0.45478568]
[1771203412195,1.20716669,1970.9,1970.3,0.45478568]
[1771203412603,7.73495018,1970.8,1970.3,0.45478568]
[1771203412771,0.76,1970.7,1970.3,0.001]
[1771203413786,1.21616669,1970.7,1970.3,0.001]
[1771203415303,1.21616669,1970.7,1970.3,0.45478568]
[1771203415304,0.76,1970.7,1970.3,0.45478568]
[1771203416199,0.76,1970.7,1970.4,0.001]
[1771203416370,0.76,1970.7,1970.4,0.45478568]
[1771203417176,0.0011,1970.8,1970.4,0.45478568]
[1771203419605,0.0011,1970.8,1970.4,0.001]
[1771203422308,0.0011,1970.8,1970.4,0.45478568]
[1771203422487,0.0011,1971.0,1970.6,0.45378568]
[1771203422892,0.0022,1971.0,1970.4,0.001]
[1771203423211,0.0022,1971.0,1970.4,0.45478568]
[1771203424109,0.0011,1970.9,1970.4,0.001]
[1771203424416,7.73495018,1970.8,1970.4,0.001]
[1771203424616,8.19221687,1970.8,1970.4,0.001]
[1771203425178,7.73495018,1970.6,1970.4,0.001]
[1771203425410,7.73495018,1970.6,1970.2,0.001]
[1771203425411,8.19111687,1970.6,1970.2,0.001]
[1771203425617,0.0011,1970.5,1970.2,0.001]
[1771203426016,0.0011,1970.5,1970.2,0.45478568]
[1771203426180,0.768,1970.7,1970.2,0.45478568]
[1771203426384,0.0011,1970.6,1970.2,0.45478568]
[1771203427420,0.0011,1971.0,1970.2,0.45478568]
[1771203427710,0.0011,1970.9,1970.2,0.45478568]
[1771203428081,0.0011,1970.8,1970.2,0.45478568]
[1771203428282,0.0011,1970.9,1970.2,0.45478568]
[1771203428718,0.0011,1970.8,1970.2,0.45478568]
[1771203428925,0.0011,1970.9,1970.2,0.45478568]
[1771203429312,0.0011,1970.8,1970.2,0.45478568]
[1771203429515,0.0011,1970.9,1970.2,0.45478568]
[1771203430026,0.45726669,1970.8,1970.2,0.001]
[1771203430332,0.45726669,1970.8,1970.3,0.001]
[1771203430333,0.45616669,1970.8,1970.3,0.001]
[1771203430505,0.45726669,1970.7,1970.3,0.001]
[1771203430935,0.0011,1970.6,1970.3,0.001]
[1771203431404,0.0011,1970.5,1970.3,0.001]
[1771203431603,0.0011,1970.6,1970.3,0.001]
[1771203432005,0.0011,1970.5,1970.3,0.001]
[1771203436725,0.48154502,1970.5,1970.1,0.001]
[1771203437330,0.767,1970.7,1970.1,0.46136229]
[1771203438939,0.48154502,1970.6,1970.1,0.001]
[1771203442847,0.767,1970.7,1970.1,0.46136229]
[1771203443345,0.0011,1970.5,1970.2,0.46136229]
[1771203448151,0.0011,1970.5,1970.3,0.46036229]
[1771203450862,0.0011,1970.8,1970.6,0.46036229]
[1771203456548,0.0011,1970.8,1970.3,0.46036229]
[1771203456845,0.0011,1970.7,1970.3,0.46036229]
[1771203457733,0.0011,1970.7,1970.4,0.46036229]
[1771203458767,0.0011,1970.7,1970.3,0.938]
[1771203459136,0.0011,1970.7,1970.3,1.39836229]
[1771203459368,0.0011,1970.7,1970.4,0.46036229]
[1771203465373,0.0011,1970.7,1970.3,1.3920318]
[1771203466958,0.0011,1970.7,1970.2,0.001]
[1771203467159,0.0011,1970.7,1970.3,0.943]
[1771203469145,0.0011,1970.7,1970.4,0.001]
[1771203480190,0.48434227,1970.7,1970.4,0.001]
[1771203480394,0.0011,1970.7,1970.4,0.001]
[1771203481491,0.48434227,1970.7,1970.4,0.001]
[1771203481993,0.48434227,1970.7,1970.5,0.001]
[1771203482367,0.0011,1970.6,1970.5,0.001]
[1771203487785,0.48434227,1970.6,1970.5,0.001]
[1771203489102,0.48324227,1970.5,1970.3,0.001]
[1771203491183,7.73581206,1970.6,1970.3,0.001]
[1771203492271,8.21905433,1970.6,1970.3,0.001]
[1771203492472,0.0011,1970.6,1970.3,0.001]
[1771203494979,0.0011,1970.6,1970.4,0.001]
[1771203495309,0.0011,1970.5,1970.4,0.001]
[1771203496903,0.0011,1970.7,1970.5,0.46691489]
[1771203497611,0.0011,1970.7,1970.4,0.001]
[1771203499711,0.0011,1970.7,1970.4,0.46791489]
[1771203504318,0.0033,1970.7,1970.4,0.46791489]
[1771203504516,0.0033,1970.7,1970.4,0.001]
[1771203505415,0.0011,1970.7,1970.4,0.001]
[1771203506718,0.0011,1970.7,1970.5,0.001]
[1771203506890,0.0011,1970.6,1970.5,0.001]
[1771203507589,0.0033,1970.6,1970.5,0.001]
[1771203510939,0.0033,1970.6,1970.5,0.46791489]
[1771203511214,0.0011,1970.7,1970.6,0.46691489]
[1771203511404,0.0033,1970.7,1970.6,0.46691489]
[1771203511810,0.0011,1970.7,1970.6,0.46691489]
[1771203513520,0.0011,1970.7,1970.5,0.001]
[1771203513688,0.0033,1970.7,1970.5,0.001]
[1771203515321,0.0033,1970.7,1970.5,0.46791489]
[1771203516101,0.0033,1970.7,1970.5,1.41391489]
[1771203516626,0.0011,1970.7,1970.5,1.41391489]
[1771203517125,0.49918602,1970.6,1970.4,0.001]
[1771203517300,0.0012,1970.6,1970.4,0.001]
[1771203518628,0.0011,1970.7,1970.5,0.001]
[1771203518809,0.0011,1970.6,1970.5,0.001]
[1771203519129,0.0023,1970.6,1970.5,0.001]
[1771203521001,0.0011,1970.6,1970.5,0.46791489]
[1771203523213,0.0012,1970.7,1970.5,0.46791489]
[1771203524521,0.0012,1970.7,1970.6,0.954]
[1771203528940,0.0011,1970.8,1970.6,0.954]
[1771203529241,0.0012,1970.7,1970.6,0.954]
[1771203530721,0.0012,1970.7,1970.6,0.955]
[1771203531126,0.0023,1970.7,1970.6,0.955]
[1771203532947,0.49026705,1970.7,1970.6,0.955]
[1771203533818,0.49026705,1970.7,1970.6,0.001]
[1771203535653,0.0023,1970.7,1970.6,0.001]
[1771203539938,0.48906705,1970.7,1970.3,0.001]
[1771203542786,0.48796705,1970.5,1970.3,0.001]
[1771203543262,0.0011,1970.6,1970.4,0.001]
[1771203546665,0.0011,1970.6,1970.4,0.4611601]
[1771203549270,0.0011,1970.6,1970.4,0.001]
[1771203550847,0.0011,1970.6,1970.4,0.4611601]
[1771203551377,0.0011,1970.6,1970.4,1.4211601]
[1771203553265,0.48906705,1970.6,1970.2,0.001]
[1771203553846,0.0011,1970.6,1970.2,0.001]
[1771203554885,0.0011,1970.6,1970.5,0.001]
[1771203558151,0.0011,1970.6,1970.5,0.48656873]
[1771203565491,0.0011,1970.6,1970.5,0.001]
[1771203567806,0.0011,1970.7,1970.5,0.48656873]
[1771203568091,0.0011,1970.7,1970.6,1.45456873]
[1771203568484,0.0011,1970.7,1970.6,0.969]
[1771203569156,0.0011,1970.7,1970.5,0.001]
[1771203569561,0.0011,1970.7,1970.6,0.97]
[1771203570788,0.0011,1970.7,1970.5,0.001]
[1771203570995,0.47057392,1970.7,1970.6,0.97]
[1771203572994,0.0011,1970.7,1970.6,0.97]
[1771203573970,0.46947392,1970.6,1970.2,0.001]
[1771203574269,7.73415791,1970.7,1970.2,0.002]
[1771203574270,0.0011,1970.7,1970.2,0.002]
[1771203574887,0.47057392,1970.7,1970.2,0.002]
[1771203575597,0.47057392,1970.7,1970.3,0.001]
[1771203577586,0.47057392,1970.7,1970.4,0.001]
[1771203577774,0.47057392,1970.7,1970.3,0.001]
[1771203578113,0.01516238,1970.5,1970.3,0.001]
[1771203578311,0.01516238,1970.5,1970.4,0.001]
[1771203580600,0.01516238,1970.5,1970.4,0.97]
[1771203582281,0.01416238,1970.5,1970.4,1.45456873]
[1771203590390,0.0011,1970.7,1970.4,9.18890704]
[1771203590590,0.0011,1970.7,1970.5,0.48049393]
[1771203590990,0.0011,1970.6,1970.5,0.48049393]
[1771203591186,0.0011,1970.6,1970.4,8.70333831]
[1771203592026,0.0011,1970.6,1970.4,9.18383224]
[1771203593389,0.0011,1970.6,1970.4,0.969]
[1771203595486,0.0011,1970.6,1970.4,1.44949393]
[1771203599518,0.0011,1970.6,1970.4,9.18383224]
[1771203600121,0.0011,1970.6,1970.4,1.44949393]
[1771203600316,0.0011,1970.9,1970.5,0.48049393]
[1771203600510,0.0011,1971.0,1970.6,8.21144291]
[1771203600712,0.0011,1971.0,1970.8,7.73094898]
[1771203601498,0.0011,1971.0,1970.7,1.47149393]
[1771203601692,0.0011,1971.0,1970.5,7.73094898]
[1771203601898,0.46055939,1971.0,1970.3,0.915]
[1771203602240,0.45945939,1970.9,1970.4,0.993]
[1771203602534,0.45945939,1970.9,1970.5,0.994]
[1771203602843,0.46055939,1970.9,1970.5,0.994]
[1771203603045,0.46055939,1970.9,1970.3,0.001]
[1771203603046,7.73094898,1970.8,1970.3,0.001]
[1771203603324,0.45945939,1970.7,1970.4,0.001]
[1771203603696,0.45945939,1970.5,1970.2,0.994]
[1771203603898,0.45945939,1970.5,1970.2,0.494]
[1771203605004,0.45945939,1970.5,1970.1,0.001]
[1771203605202,0.45945939,1970.5,1970.1,0.994]
[1771203606022,0.45945939,1970.5,1970.1,0.001]
[1771203609645,0.45945939,1970.5,1969.1,1.26956347]
[1771203609646,0.32552607,1970.3,1969.3,0.48049393]
[1771203609807,0.32552607,1970.1,1969.5,0.48049393]
[1771203610008,0.32552607,1970.1,1969.6,0.521]
[1771203610313,0.32552607,1970.1,1969.6,0.522]
[1771203610517,0.32552607,1970.3,1969.7,0.001]
[1771203610740,0.32552607,1970.3,1969.6,1.00149393]
[1771203610741,0.32552607,1970.5,1969.8,0.48149393]
[1771203611042,0.32552607,1970.5,1969.9,0.48049393]
[1771203611244,0.32552607,1970.5,1970.0,0.991]
[1771203611411,0.32552607,1970.5,1970.1,0.001]
[1771203613338,7.73094898,1970.7,1970.1,0.001]
[1771203613526,0.32552607,1970.7,1970.2,0.001]
[1771203613731,0.32552607,1970.7,1970.1,0.001]
[1771203614240,0.32552607,1970.7,1970.2,0.001]
[1771203614419,0.32552607,1970.7,1970.1,0.001]
[1771203614621,0.32552607,1970.7,1970.2,0.001]
[1771203614820,0.32552607,1970.7,1970.2,0.002]
[1771203615028,0.0011,1970.4,1970.2,0.002]
[1771203615350,0.0011,1970.4,1970.3,0.001]
[1771203615510,0.0001,1970.4,1970.2,0.001]
[1771203616147,0.0001,1970.4,1970.2,0.48687155]
[1771203618192,0.0011,1970.7,1970.5,0.48587155]
[1771203618346,0.0011,1970.7,1970.5,1.47687155]
[1771203619376,0.0011,1970.7,1970.5,0.991]
[1771203620089,0.0011,1970.7,1970.5,0.992]
[1771203624589,0.0011,1970.7,1970.6,0.48587155]
[1771203629389,0.0011,1970.9,1970.6,0.48587155]
[1771203629794,0.0011,1970.9,1970.5,0.993]
[1771203630424,0.0011,1970.9,1970.5,1.47887155]
[1771203631597,0.32662607,1970.9,1970.5,0.001]
[1771203631929,0.32662607,1970.9,1970.6,0.998]
[1771203633228,0.32662607,1970.9,1970.5,0.001]
[1771203633435,0.32662607,1970.9,1970.5,0.999]
[1771203637828,0.32662607,1970.9,1970.5,0.001]
[1771203637829,0.32552607,1970.7,1970.5,0.001]
[1771203638428,7.73094898,1970.8,1970.5,0.001]
[1771203639030,8.05647505,1970.8,1970.5,0.001]
[1771203640006,8.05647505,1970.8,1970.6,0.001]
[1771203640207,8.05757505,1970.8,1970.6,0.001]
[1771203641320,0.32552607,1970.7,1970.3,0.001]
[1771203641641,0.32552607,1970.7,1970.2,0.001]
[1771203641642,0.32552607,1970.4,1970.0,0.001]
[1771203641843,8.05647505,1970.3,1970.0,0.001]
[1771203642135,0.32552607,1970.2,1969.6,1.00687155]
[1771203643650,7.73094898,1969.9,1969.4,0.49619554]
[1771203643821,7.73094898,1969.9,1969.4,1.49119554]
[1771203644143,0.32552607,1970.0,1969.4,1.49119554]
[1771203644742,0.32552607,1970.0,1969.0,0.4977344]
[1771203644743,8.06887595,1969.7,1969.0,0.4977344]
[1771203644957,7.74334988,1969.7,1969.0,0.4977344]
[1771203645751,8.06887595,1969.7,1969.0,0.4977344]
[1771203646114,0.5,1969.6,1969.0,0.4977344]
[1771203646315,0.5,1969.6,1969.0,0.00153886]
[1771203646316,8.06887595,1969.5,1969.0,0.00153886]
[1771203646725,7.74334988,1969.3,1969.0,0.00153886]
[1771203648099,7.74334988,1969.5,1969.0,0.00153886]
[1771203649766,0.32552607,1969.6,1969.0,0.00153886]
[1771203649767,7.74334988,1969.7,1969.0,0.4654254]
[1771203649970,0.78,1969.8,1969.0,0.4654254]
[1771203650124,0.32552607,1970.0,1969.0,0.4654254]
[1771203650325,7.74334988,1970.1,1969.2,0.46388654]
[1771203650655,7.74334988,1970.1,1969.1,7.74334988]
[1771203650656,7.74334988,1970.1,1969.4,0.46388654]
[1771203651744,0.914,1970.4,1969.6,0.46388654]
[1771203652343,1.11052607,1970.5,1969.6,0.46388654]
[1771203652955,0.1035,1970.8,1969.6,0.46388654]
[1771203652956,1.11152607,1970.7,1969.6,0.46388654]
[1771203655086,0.32552607,1970.6,1969.6,0.46388654]
[1771203656875,0.32552607,1970.6,1969.7,0.46388654]
[1771203658550,0.786,1970.7,1969.7,0.46388654]
[1771203658854,0.0011,1970.8,1969.7,0.46388654]
[1771203659580,0.0011,1970.8,1969.8,0.46388654]
[1771203660876,0.0011,1970.8,1969.9,0.46388654]
[1771203664690,0.0011,1970.7,1970.0,0.46388654]
[1771203664987,0.0011,1970.7,1969.9,1.26908869]
[1771203664988,0.0011,1970.7,1970.2,0.46388654]
[1771203665180,0.0011,1970.7,1970.4,0.46388654]
[1771203667766,0.0011,1970.7,1970.0,0.46388654]
[1771203667990,0.0011,1970.7,1970.1,0.521]
[1771203668369,0.0011,1970.7,1970.0,0.46388654]
[1771203668370,0.32662607,1970.7,1970.0,0.46388654]
[1771203668892,0.32662607,1970.7,1969.8,0.46388654]
[1771203669095,0.32662607,1970.7,1969.9,1.05088654]
[1771203669994,0.32662607,1970.7,1970.0,0.46388654]
[1771203669995,0.0011,1970.7,1970.0,0.46388654]
[1771203671893,0.0011,1970.7,1970.1,0.46388654]
[1771203674219,0.0011,1970.7,1970.2,0.46670192]
[1771203676285,0.0011,1970.7,1970.3,0.46670192]
[1771203676492,0.0011,1970.7,1970.5,0.46670192]
[1771203677077,0.0011,1970.6,1970.5,0.46670192]
[1771203678602,0.0011,1970.8,1970.5,0.46670192]
[1771203679587,0.20517013,1971.5,1970.5,0.46670192]
[1771203679818,0.0011,1971.8,1970.8,0.46670192]
[1771203679975,0.0011,1971.8,1971.0,0.46670192]
[1771203680312,0.0011,1971.8,1971.2,0.46670192]
[1771203681775,0.91553886,1973.0,1971.6,9.6598447]
[1771203681975,0.91553886,1973.0,1971.2,1.26825485]
[1771203681976,0.0011,1972.9,1972.1,0.46670192]
[1771203682211,0.0011,1972.9,1971.6,0.914]
[1771203682507,0.0011,1972.8,1971.7,0.997]
[1771203682707,0.0011,1972.8,1971.2,0.46670192]
[1771203682708,0.21000899,1972.7,1971.2,0.46670192]
[1771203682889,0.21110899,1972.7,1971.4,0.914]
[1771203683089,0.21000899,1972.5,1971.4,1.38070192]
[1771203683292,0.21000899,1972.5,1971.4,0.46670192]
[1771203683493,0.21000899,1972.5,1971.5,0.521]
[1771203687443,0.21000899,1972.5,1971.0,10.92977434]
[1771203687444,0.21110899,1972.4,1971.2,0.46670192]
[1771203687591,0.21110899,1972.4,1971.3,0.777]
[1771203687796,0.21000899,1972.2,1971.3,0.777]
[1771203688239,0.0011,1972.1,1971.3,0.777]
[1771203688734,0.21000899,1972.2,1971.2,0.46670192]
[1771203688735,0.0011,1972.0,1971.2,0.46670192]
[1771203688888,0.0011,1972.1,1971.2,2.24570192]
[1771203689289,0.21000899,1972.2,1971.2,2.24570192]
[1771203689290,0.0011,1972.0,1971.2,2.24570192]
[1771203689513,0.21110899,1972.1,1971.2,2.24570192]
[1771203689727,0.21000899,1972.3,1971.3,0.46670192]
[1771203689900,0.21000899,1972.3,1971.3,0.46770192]
[1771203690108,0.0011,1972.0,1971.3,0.45490192]
[1771203690591,0.0011,1971.9,1971.3,0.45490192]
[1771203690785,0.0011,1971.9,1971.3,0.001]
[1771203690786,0.22390899,1971.9,1971.3,0.001]
[1771203690993,0.0011,1971.8,1971.3,0.001]
[1771203691531,0.0011,1971.7,1971.3,0.001]
[1771203691714,0.0011,1971.8,1971.3,0.001]
[1771203692132,0.0011,1971.7,1971.3,0.001]
[1771203692343,0.0011,1971.8,1971.3,0.001]
[1771203692710,0.0011,1971.7,1971.3,0.001]
[1771203693018,0.22390899,1971.8,1971.3,0.001]
[1771203693224,0.0011,1971.9,1971.3,0.46770192]
[1771203693619,0.0011,1971.8,1971.3,0.46770192]
[1771203693954,0.0011,1971.9,1971.3,0.46770192]
[1771203694314,0.0011,1971.8,1971.3,0.46770192]
[1771203694653,0.0011,1971.9,1971.3,0.46770192]
[1771203695012,0.0011,1971.8,1971.3,0.46770192]
[1771203695210,0.0011,1971.9,1971.3,0.46770192]
[1771203695444,0.0011,1971.8,1971.3,0.46770192]
[1771203695664,0.0011,1971.9,1971.3,0.46770192]
[1771203696148,0.0011,1971.8,1971.3,0.46770192]
[1771203696313,0.0011,1971.9,1971.3,0.46770192]
[1771203696512,0.22390899,1972.0,1971.3,0.46770192]
[1771203696741,0.0011,1971.9,1971.3,0.46770192]
[1771203697113,0.0011,1971.8,1971.3,0.46770192]
[1771203697314,0.0011,1971.7,1971.3,0.46770192]
[1771203697516,0.0011,1971.9,1971.3,0.001]
[1771203697745,0.0011,1971.8,1971.3,0.001]
[1771203697944,0.0011,1971.9,1971.3,0.001]
[1771203698353,0.0011,1971.8,1971.3,0.001]
[1771203698553,0.0011,1971.9,1971.3,0.001]
[1771203699020,0.0011,1971.8,1971.3,0.001]
[1771203699221,0.0011,1971.9,1971.3,0.001]
[1771203699667,0.0011,1971.8,1971.3,0.001]
[1771203699961,0.0011,1971.9,1971.3,0.001]
[1771203700426,0.0011,1971.8,1971.3,0.001]
[1771203700862,0.0011,1971.7,1971.3,0.001]
[1771203701241,0.0011,1971.6,1971.3,0.001]
[1771203701566,0.22390899,1971.6,1971.3,0.001]
[1771203701728,0.0011,1971.5,1971.3,0.001]
[1771203701930,0.0011,1971.4,1971.3,0.001]
[1771203702126,0.0011,1971.5,1971.3,0.001]
[1771203702476,0.0011,1971.5,1971.4,0.001]
[1771203702638,0.22280899,1971.6,1971.4,0.001]
[1771203702953,0.0011,1971.5,1971.4,0.001]